fUST/lending_fUST_20250326
["ID","MTS","AMOUNT","RATE_DAILY","PERIOD"]
[356660008,1742925038792,-1728.29,0.00012078,2]
[356660009,1742925038801,-500.0,0.00012078,2]
[356660010,1742925038810,-2556.96,0.00012078,2]
[356660011,1742925038820,-500.0,0.00012078,2]
[356660012,1742925038830,-2240.96,0.00012078,2]
[356660013,1742925038839,-500.0,0.00012078,2]
[356660014,1742925038849,-500.0,0.00012078,2]
[356660015,1742925038858,-639.99,0.00012078,2]
[356660016,1742925038867,-500.0,0.00012078,2]
[356660017,1742925038877,-2102.91437791,0.00012078,2]
[356660046,1742925043501,-500.0,0.00012076,2]
[356660047,1742925043511,-143.06,0.00012077,2]
[356660048,1742925043523,-356.94,0.00012077,2]
[356660049,1742925043534,-2643.06,0.00012078,2]
[356660050,1742925043547,-305.12562209,0.00012078,2]
[356660052,1742925043557,-500.0,0.00012078,2]
[356660053,1742925043569,-3548.8,0.00012078,2]
[356660055,1742925043580,-500.0,0.00012078,2]
[356660056,1742925043589,-175.31122694,0.00012078,2]
[356660057,1742925043601,-1776.11803174,0.00012078,2]
[356660067,1742925051643,5000.0,0.00011977,2]
[356660068,1742925154868,500.0,0.00011976,2]
[356660069,1742925292560,187231.78937085,0.00011977,2]
[356660070,1742925413333,512.0,0.00014,30]
[356660071,1742925428473,44236.09628463,0.00011977,2]
[356660072,1742925428501,22859.3597392,0.00011977,2]
[356660073,1742925430450,514.0,0.00014,30]
[356660074,1742925515998,173.621313,0.00010959,2]
[356660079,1742926111338,643.06,0.00010959,2]
[356660085,1742926232506,-151.0,0.00012069,2]
[356660086,1742926232516,-600.0,0.00012069,2]
[356660087,1742926232527,-325.25880968,0.00012074,2]
[356660088,1742926232536,-300.0,0.00012074,2]
[356660089,1742926232546,-238.98128992,0.00012074,2]
[356660090,1742926232556,-500.0,0.00012074,2]
[356660091,1742926232567,-500.0,0.00012075,2]
[356660092,1742926232578,-500.0,0.00012075,2]
[356660093,1742926232588,-500.0,0.00012075,2]
[356660094,1742926232597,-500.0,0.00012075,2]
[356660095,1742926232607,-500.0,0.00012075,2]
[356660096,1742926232617,-500.0,0.00012075,2]
[356660097,1742926232627,-565.52,0.00012075,2]
[356660098,1742926232637,-500.0,0.00012075,2]
[356660099,1742926232647,-500.0,0.00012075,2]
[356660100,1742926232657,-500.0,0.00012075,2]
[356660101,1742926232666,-500.0,0.00012075,2]
[356660102,1742926232676,-500.0,0.00012075,2]
[356660103,1742926232687,-500.0,0.00012075,2]
[356660104,1742926232696,-500.0,0.00012075,2]
[356660105,1742926232706,-621.29,0.00012075,2]
[356660106,1742926232716,-207.85600537,0.00012075,2]
[356660107,1742926232729,-292.14399463,0.00012075,2]
[356660108,1742926232739,-500.0,0.00012075,2]
[356660109,1742926232749,-500.0,0.00012075,2]
[356660111,1742926232759,-500.0,0.00012075,2]
[356660113,1742926232770,-894.17,0.00012075,2]
[356660115,1742926232780,-500.0,0.00012075,2]
[356660117,1742926232790,-500.0,0.00012075,2]
[356660118,1742926232799,-516.72,0.00012075,2]
[356660119,1742926232809,-500.0,0.00012075,2]
[356660120,1742926232819,-500.0,0.00012075,2]
[356660121,1742926232829,-500.0,0.00012075,2]
[356660122,1742926232839,-515.17,0.00012075,2]
[356660123,1742926232849,-500.0,0.00012075,2]
[356660124,1742926232859,-500.0,0.00012075,2]
[356660125,1742926232869,-500.0,0.00012075,2]
[356660126,1742926232879,-500.0,0.00012075,2]
[356660127,1742926232889,-500.0,0.00012075,2]
[356660128,1742926232899,-500.0,0.00012075,2]
[356660129,1742926232913,-500.0,0.00012075,2]
[356660130,1742926232923,-500.0,0.00012075,2]
[356660131,1742926232933,-500.0,0.00012075,2]
[356660132,1742926232942,-500.0,0.00012075,2]
[356660133,1742926232953,-530.46,0.00012075,2]
[356660134,1742926232963,-500.0,0.00012075,2]
[356660135,1742926232973,-500.0,0.00012075,2]
[356660136,1742926232983,-672.8,0.00012075,2]
[356660137,1742926232994,-500.0,0.00012075,2]
[356660138,1742926233004,-500.0,0.00012075,2]
[356660139,1742926233014,-500.0,0.00012075,2]
[356660140,1742926233024,-500.0,0.00012075,2]
[356660141,1742926233034,-500.0,0.00012075,2]
[356660142,1742926233045,-500.0,0.00012075,2]
[356660143,1742926233054,-500.0,0.00012075,2]
[356660144,1742926233064,-500.0,0.00012075,2]
[356660145,1742926233075,-500.0,0.00012075,2]
[356660146,1742926233085,-500.0,0.00012075,2]
[356660147,1742926233096,-6432.46,0.00012075,2]
[356660148,1742926233106,-570.63,0.00012075,2]
[356660149,1742926233115,-500.0,0.00012075,2]
[356660150,1742926233125,-694.73,0.00012075,2]
[356660151,1742926233135,-1656.28,0.00012075,2]
[356660152,1742926233145,-500.0,0.00012075,2]
[356660153,1742926233154,-1065.03,0.00012075,2]
[356660154,1742926233165,-500.0,0.00012075,2]
[356660155,1742926233175,-3416.15,0.00012075,2]
[356660156,1742926233186,-815.6,0.00012075,2]
[356660157,1742926233196,-500.0,0.00012075,2]
[356660158,1742926233206,-520.47,0.00012075,2]
[356660159,1742926233216,-906.28,0.00012075,2]
[356660160,1742926233226,-1361.87,0.00012075,2]
[356660161,1742926233237,-2147.59,0.00012075,2]
[356660162,1742926233247,-500.0,0.00012075,2]
[356660163,1742926233257,-500.0,0.00012075,2]
[356660164,1742926233267,-500.0,0.00012075,2]
[356660165,1742926233276,-1088.11,0.00012075,2]
[356660166,1742926233286,-161.38029061,0.00012075,2]
[356660167,1742926233296,-500.0,0.00012075,2]
[356660168,1742926233306,-500.0,0.00012075,2]
[356660169,1742926233315,-500.0,0.00012075,2]
[356660170,1742926233325,-481.47010423,0.00012075,2]
[356660171,1742926233335,-563.13,0.00012075,2]
[356660172,1742926233344,-699.66,0.00012075,2]
[356660173,1742926233354,-2450.42,0.00012075,2]
[356660174,1742926233363,-500.0,0.00012075,2]
[356660175,1742926233372,-870.86,0.00012075,2]
[356660176,1742926233383,-824.73,0.00012075,2]
[356660177,1742926233393,-500.0,0.00012075,2]
[356660178,1742926233402,-500.0,0.00012075,2]
[356660179,1742926233412,-500.0,0.00012075,2]
[356660180,1742926233421,-6825.95,0.00012075,2]
[356660181,1742926233432,-500.0,0.00012075,2]
[356660182,1742926233442,-723.54,0.00012075,2]
[356660183,1742926233452,-3400.93,0.00012075,2]
[356660184,1742926233461,-500.0,0.00012075,2]
[356660185,1742926233471,-500.0,0.00012075,2]
[356660186,1742926233480,-7016.37,0.00012075,2]
[356660187,1742926233490,-500.0,0.00012075,2]
[356660188,1742926233500,-500.0,0.00012075,2]
[356660189,1742926233509,-446.52153973,0.00012075,2]
[356660190,1742926233519,-942.77,0.00012075,2]
[356660191,1742926233529,-500.0,0.00012075,2]
[356660192,1742926233539,-500.0,0.00012075,2]
[356660193,1742926233549,-647.85,0.00012075,2]
[356660194,1742926233559,-613.33,0.00012075,2]
[356660195,1742926233722,-2207.05,0.00012075,2]
[356660196,1742926233733,-500.0,0.00012075,2]
[356660197,1742926233743,-500.0,0.00012075,2]
[356660198,1742926233754,-500.0,0.00012075,2]
[356660199,1742926233765,-2083.31,0.00012075,2]
[356660200,1742926233775,-500.0,0.00012075,2]
[356660201,1742926233785,-4840.63,0.00012075,2]
[356660202,1742926233795,-1972.08,0.00012075,2]
[356660203,1742926233805,-500.0,0.00012075,2]
[356660204,1742926233815,-42055.09099604,0.00012075,2]
[356660206,1742926238513,-500.0,0.00012074,2]
[356660207,1742926238523,-42285.27900396,0.00012075,2]
[356660208,1742926238532,-500.0,0.00012075,2]
[356660209,1742926238541,-1811.33,0.00012075,2]
[356660210,1742926238551,-500.0,0.00012075,2]
[356660211,1742926238560,-500.0,0.00012075,2]
[356660213,1742926238569,-684.45,0.00012075,2]
[356660214,1742926238578,-1269.73,0.00012075,2]
[356660215,1742926238587,-2663.34,0.00012075,2]
[356660216,1742926238597,-683.01,0.00012075,2]
[356660217,1742926238606,-6058.61,0.00012075,2]
[356660218,1742926238615,-560.36060749,0.00012075,2]
[356660219,1742926238625,-500.0,0.00012075,2]
[356660220,1742926238634,-500.0,0.00012075,2]
[356660221,1742926238644,-919.28,0.00012075,2]
[356660222,1742926238653,-1223.38,0.00012075,2]
[356660223,1742926238662,-1380.7,0.00012075,2]
[356660224,1742926238672,-829.63,0.00012075,2]
[356660225,1742926238681,-1834.03,0.00012075,2]
[356660226,1742926238691,-500.0,0.00012075,2]
[356660227,1742926238700,-1030.95,0.00012075,2]
[356660228,1742926238709,-500.0,0.00012075,2]
[356660229,1742926238719,-1563.7,0.00012075,2]
[356660230,1742926238728,-1104.71,0.00012075,2]
[356660231,1742926238737,-500.0,0.00012075,2]
[356660232,1742926238746,-500.0,0.00012075,2]
[356660233,1742926238756,-500.0,0.00012075,2]
[356660234,1742926238765,-500.0,0.00012075,2]
[356660235,1742926238774,-832.14,0.00012075,2]
[356660236,1742926238784,-1273.86,0.00012075,2]
[356660237,1742926238793,-500.0,0.00012075,2]
[356660238,1742926238803,-500.0,0.00012075,2]
[356660239,1742926238813,-4172.66,0.00012075,2]
[356660240,1742926238822,-500.0,0.00012075,2]
[356660241,1742926238831,-500.0,0.00012075,2]
[356660242,1742926238841,-500.0,0.00012075,2]
[356660243,1742926238850,-500.0,0.00012075,2]
[356660244,1742926238859,-500.0,0.00012075,2]
[356660245,1742926238869,-500.0,0.00012075,2]
[356660246,1742926238879,-500.0,0.00012075,2]
[356660247,1742926238888,-928.42,0.00012075,2]
[356660248,1742926238897,-500.0,0.00012075,2]
[356660249,1742926238907,-601.66,0.00012075,2]
[356660250,1742926238920,-401.0,0.00012075,2]
[356660251,1742926238929,-5019.19,0.00012075,2]
[356660252,1742926238939,-500.0,0.00012075,2]
[356660253,1742926238947,-1307.58,0.00012075,2]
[356660254,1742926238957,-616.79,0.00012075,2]
[356660255,1742926238966,-500.0,0.00012075,2]
[356660256,1742926238975,-1222.53,0.00012075,2]
[356660257,1742926238985,-229.647896,0.00012075,2]
[356660258,1742926238995,-1177.57,0.00012076,2]
[356660259,1742926239004,-500.0,0.00012076,2]
[356660260,1742926239014,-621.22,0.00012076,2]
[356660261,1742926239023,-649.77962568,0.00012076,2]
[356660262,1742926239032,-500.0,0.00012076,2]
[356660263,1742926239041,-500.0,0.00012076,2]
[356660264,1742926239050,-500.0,0.00012076,2]
[356660265,1742926239060,-500.0,0.00012076,2]
[356660266,1742926239069,-500.0,0.00012076,2]
[356660267,1742926239079,-86.16061216,0.00012076,2]
[356660402,1742926240871,-6164.44,0.00012075,2]
[356660405,1742926240881,-413.83938784,0.00012076,2]
[356660408,1742926240890,-500.0,0.00012076,2]
[356660411,1742926240900,-500.0,0.00012076,2]
[356660413,1742926240913,-509.23,0.00012076,2]
[356660416,1742926240923,-711.81,0.00012076,2]
[356660419,1742926240933,-500.0,0.00012076,2]
[356660422,1742926240943,-1047.27,0.00012076,2]
[356660425,1742926240954,-500.0,0.00012076,2]
[356660428,1742926240963,-836.04,0.00012076,2]
[356660431,1742926240973,-2538.46,0.00012076,2]
[356660434,1742926240983,-500.0,0.00012076,2]
[356660437,1742926240992,-500.0,0.00012076,2]
[356660440,1742926241003,-500.0,0.00012076,2]
[356660443,1742926241012,-500.0,0.00012077,2]
[356660446,1742926241021,-500.0,0.00012077,2]
[356660448,1742926241030,-500.0,0.00012077,2]
[356660451,1742926241039,-500.0,0.00012077,2]
[356660454,1742926241049,-500.0,0.00012077,2]
[356660457,1742926241058,-290.70466616,0.00012077,2]
[356660466,1742926241094,-209.29533384,0.00012077,2]
[356660469,1742926241103,-500.0,0.00012077,2]
[356660472,1742926241113,-500.0,0.00012077,2]
[356660475,1742926241122,-500.0,0.00012077,2]
[356660478,1742926241131,-500.0,0.00012077,2]
[356660481,1742926241139,-500.0,0.00012077,2]
[356660484,1742926241148,-500.0,0.00012077,2]
[356660487,1742926241158,-500.0,0.00012077,2]
[356660490,1742926241168,-500.0,0.00012077,2]
[356660493,1742926241178,-500.0,0.00012077,2]
[356660496,1742926241188,-500.0,0.00012077,2]
[356660499,1742926241198,-500.0,0.00012077,2]
[356660502,1742926241208,-594.54,0.00012077,2]
[356660505,1742926241218,-500.0,0.00012077,2]
[356660508,1742926241227,-500.0,0.00012077,2]
[356660510,1742926241238,-455.63925478,0.00012078,2]
[356660512,1742926241248,-344.6,0.000121,2]
[356660514,1742926241259,-500.0,0.00012348,2]
[356660517,1742926241268,-500.0,0.00012348,2]
[356660519,1742926241277,-500.0,0.00012349,2]
[356660522,1742926241287,-500.0,0.00012349,2]
[356660525,1742926241297,-565.52,0.00012349,2]
[356660528,1742926241307,-500.0,0.00012349,2]
[356660531,1742926241317,-500.0,0.00012349,2]
[356660534,1742926241327,-205.16426899,0.00012349,2]
[356660537,1742926241336,-151.05,0.00012349,2]
[356660540,1742926241345,-621.29,0.00012349,2]
[356660543,1742926241355,-500.0,0.00012349,2]
[356660546,1742926241364,-500.0,0.00012349,2]
[356660549,1742926241373,-500.0,0.00012349,2]
[356660552,1742926241383,-894.17,0.00012349,2]
[356660555,1742926241392,-500.0,0.00012349,2]
[356660557,1742926241401,-500.0,0.00012349,2]
[356660561,1742926241411,-516.72,0.00012349,2]
[356660564,1742926241421,-500.0,0.00012349,2]
[356660566,1742926241431,-515.17,0.00012349,2]
[356660569,1742926241442,-500.0,0.00012349,2]
[356660573,1742926241451,-500.0,0.00012349,2]
[356660576,1742926241461,-500.0,0.00012349,2]
[356660578,1742926241470,-500.0,0.00012349,2]
[356660582,1742926241479,-500.0,0.00012349,2]
[356660585,1742926241489,-500.0,0.00012349,2]
[356660588,1742926241497,-500.0,0.00012349,2]
[356660591,1742926241506,-500.0,0.00012349,2]
[356660594,1742926241516,-479.74316366,0.00012349,2]
[356660597,1742926241525,-530.46,0.00012349,2]
[356660600,1742926241534,-500.0,0.00012349,2]
[356660602,1742926241543,-672.8,0.00012349,2]
[356660605,1742926241552,-500.0,0.00012349,2]
[356660609,1742926241565,-500.0,0.00012349,2]
[356660611,1742926241574,-500.0,0.00012349,2]
[356660614,1742926241583,-500.0,0.00012349,2]
[356660617,1742926241592,-500.0,0.00012349,2]
[356660620,1742926241601,-500.0,0.00012349,2]
[356660623,1742926241610,-500.0,0.00012349,2]
[356660626,1742926241620,-500.0,0.00012349,2]
[356660629,1742926241629,-500.0,0.00012349,2]
[356660632,1742926241638,-570.63,0.00012349,2]
[356660635,1742926241647,-500.0,0.00012349,2]
[356660638,1742926241656,-694.73,0.00012349,2]
[356660641,1742926241665,-1656.28,0.00012349,2]
[356660644,1742926241675,-500.0,0.00012349,2]
[356660647,1742926241685,-1065.03,0.00012349,2]
[356660650,1742926241694,-500.0,0.00012349,2]
[356660653,1742926241703,-3416.15,0.00012349,2]
[356660657,1742926241714,-500.0,0.00012349,2]
[356660660,1742926241723,-520.47,0.00012349,2]
[356660663,1742926241732,-906.28,0.00012349,2]
[356660666,1742926241742,-1361.87,0.00012349,2]
[356660669,1742926241751,-2147.59,0.00012349,2]
[356660672,1742926241760,-500.0,0.00012349,2]
[356660675,1742926241770,-500.0,0.00012349,2]
[356660678,1742926241779,-1088.11,0.00012349,2]
[356660681,1742926241788,-500.0,0.00012349,2]
[356660684,1742926241797,-563.13,0.00012349,2]
[356660687,1742926241807,-699.66,0.00012349,2]
[356660690,1742926241816,-2450.42,0.00012349,2]
[356660693,1742926241825,-500.0,0.00012349,2]
[356660696,1742926241835,-870.86,0.00012349,2]
[356660699,1742926241844,-824.73,0.00012349,2]
[356660702,1742926241853,-500.0,0.00012349,2]
[356660705,1742926241863,-500.0,0.00012349,2]
[356660708,1742926241873,-6825.95,0.00012349,2]
[356660711,1742926241882,-500.0,0.00012349,2]
[356660714,1742926241891,-723.54,0.00012349,2]
[356660717,1742926241900,-3400.93,0.00012349,2]
[356660720,1742926241911,-500.0,0.00012349,2]
[356660723,1742926241926,-7016.37,0.00012349,2]
[356660752,1742926242079,-500.0,0.00012349,2]
[356660755,1742926242090,-942.77,0.00012349,2]
[356660758,1742926242100,-500.0,0.00012349,2]
[356660761,1742926242110,-271.73415751,0.00012349,2]
[356660764,1742926242120,-647.85,0.00012349,2]
[356660767,1742926242130,-613.33,0.00012349,2]
[356660770,1742926242140,-2207.05,0.00012349,2]
[356660773,1742926242150,-500.0,0.00012349,2]
[356660776,1742926242159,-500.0,0.00012349,2]
[356660779,1742926242169,-2083.31,0.00012349,2]
[356660782,1742926242180,-500.0,0.00012349,2]
[356660785,1742926242193,-4840.63,0.00012349,2]
[356660788,1742926242203,-1972.08,0.00012349,2]
[356660791,1742926242213,-500.0,0.00012349,2]
[356660794,1742926242223,-72384.42500623,0.00012349,2]
[356660886,1742926561361,1000.0,0.00012,2]
[356660887,1742926569371,1000.0,0.00012,2]
[356660888,1742926576301,1000.0,0.00012,2]
[356660889,1742926582928,1000.0,0.00012,2]
[356660890,1742926590166,1000.0,0.00012,2]
[356660891,1742926597257,1000.0,0.00012,2]
[356660892,1742926605507,1000.0,0.00012,2]
[356660893,1742926611909,1000.0,0.00012,2]
[356660894,1742926618432,1000.0,0.00012,2]
[356660895,1742926631676,173.166869,0.00010959,2]
[356660896,1742926633269,726.64,0.00012,2]
[356660902,1742927113393,268.42864852,0.00011973,2]
[356660923,1742927433168,-300.0,0.0001207,2]
[356660924,1742927433178,-500.0,0.00012071,2]
[356660925,1742927433188,-6431.67,0.00012071,2]
[356660926,1742927433198,-593.86,0.00012071,2]
[356660927,1742927433207,-2023.13,0.00012071,2]
[356660928,1742927433217,-655.93,0.00012071,2]
[356660929,1742927433226,-5806.17,0.00012071,2]
[356660930,1742927433236,-987.99,0.00012071,2]
[356660931,1742927433245,-795.06,0.00012071,2]
[356660932,1742927433255,-500.0,0.00012071,2]
[356660933,1742927433270,-500.0,0.00012071,2]
[356660934,1742927433279,-3998.8,0.00012071,2]
[356660935,1742927433289,-257.7854328,0.00012071,2]
[356660936,1742927433298,-500.0,0.00012071,2]
[356660937,1742927433309,-500.0,0.00012071,2]
[356660938,1742927433319,-500.0,0.00012071,2]
[356660939,1742927433329,-500.0,0.00012071,2]
[356660940,1742927433338,-477.53218386,0.00012071,2]
[356660941,1742927433349,-2241.47,0.00012072,2]
[356660942,1742927433359,-636.84,0.00012072,2]
[356660943,1742927433368,-500.0,0.00012072,2]
[356660944,1742927433382,-976.27,0.00012072,2]
[356660945,1742927433392,-3131.47,0.00012072,2]
[356660946,1742927433401,-830.75,0.00012072,2]
[356660947,1742927433411,-798.28,0.00012072,2]
[356660948,1742927433422,-997.43,0.00012072,2]
[356660949,1742927433432,-500.0,0.00012072,2]
[356660950,1742927433442,-500.0,0.00012072,2]
[356660951,1742927433452,-516.2,0.00012072,2]
[356660952,1742927433462,-756.0,0.00012072,2]
[356660953,1742927433471,-500.0,0.00012072,2]
[356660954,1742927433481,-1388.76863319,0.00012072,2]
[356660964,1742927438552,-500.0,0.0001207,2]
[356660965,1742927438562,-500.0,0.0001207,2]
[356660966,1742927438572,-500.0,0.0001207,2]
[356660967,1742927438582,-380.65780558,0.0001207,2]
[356660968,1742927438591,-500.0,0.0001207,2]
[356660969,1742927438600,-500.0,0.0001207,2]
[356660970,1742927438610,-500.0,0.0001207,2]
[356660971,1742927438619,-500.0,0.0001207,2]
[356660972,1742927438628,-500.0,0.0001207,2]
[356660973,1742927438637,-500.0,0.0001207,2]
[356660974,1742927438646,-500.0,0.0001207,2]
[356660975,1742927438655,-603.934619,0.0001207,2]
[356660976,1742927438665,-500.0,0.00012071,2]
[356660977,1742927438675,-4868.36136681,0.00012072,2]
[356660978,1742927438684,-500.0,0.00012072,2]
[356660979,1742927438693,-1909.7,0.00012072,2]
[356660980,1742927438702,-1807.74,0.00012072,2]
[356660981,1742927438710,-1735.86,0.00012072,2]
[356660982,1742927438720,-797.46,0.00012072,2]
[356660983,1742927438729,-880.98,0.00012072,2]
[356660984,1742927438738,-500.0,0.00012072,2]
[356660985,1742927438747,-1757.61,0.00012072,2]
[356660986,1742927438756,-500.0,0.00012072,2]
[356660987,1742927438765,-500.0,0.00012072,2]
[356660988,1742927438774,-889.73,0.00012072,2]
[356660989,1742927438784,-518.4,0.00012073,2]
[356660990,1742927438794,-500.0,0.00012073,2]
[356660991,1742927438803,-500.0,0.00012073,2]
[356660992,1742927438813,-569.52,0.00012073,2]
[356660993,1742927438823,-230.95672394,0.00012073,2]
[356661040,1742927440877,-1253.1,0.00012072,2]
[356661042,1742927440887,-269.04327606,0.00012073,2]
[356661044,1742927440896,-500.0,0.00012073,2]
[356661046,1742927440905,-500.0,0.00012073,2]
[356661048,1742927440915,-819.66,0.00012073,2]
[356661050,1742927440925,-500.0,0.00012073,2]
[356661052,1742927440935,-500.0,0.00012073,2]
[356661054,1742927440945,-500.0,0.00012073,2]
[356661056,1742927440954,-500.0,0.00012073,2]
[356661058,1742927440964,-500.0,0.00012073,2]
[356661060,1742927440974,-500.0,0.00012073,2]
[356661062,1742927440984,-500.0,0.00012073,2]
[356661064,1742927440993,-500.0,0.00012073,2]
[356661067,1742927441003,-500.0,0.00012073,2]
[356661069,1742927441012,-500.0,0.00012073,2]
[356661071,1742927441022,-500.0,0.00012073,2]
[356661073,1742927441031,-500.0,0.00012073,2]
[356661074,1742927441041,-208.47119432,0.00012073,2]
[356661076,1742927441050,-495.80094217,0.00012073,2]
[356661079,1742927441060,-500.0,0.00012073,2]
[356661081,1742927441070,-500.0,0.00012073,2]
[356661083,1742927441079,-500.0,0.00012073,2]
[356661085,1742927441089,-1171.6,0.00012073,2]
[356661087,1742927441099,-523.07,0.00012073,2]
[356661089,1742927441108,-781.62,0.00012073,2]
[356661091,1742927441118,-1518.25,0.00012073,2]
[356661093,1742927441127,-1248.38,0.00012073,2]
[356661095,1742927441137,-500.0,0.00012073,2]
[356661097,1742927441147,-385.90108926,0.00012073,2]
[356661099,1742927441156,-2246.22,0.00012073,2]
[356661101,1742927441167,-1968.62,0.00012073,2]
[356661103,1742927441176,-641.35,0.00012073,2]
[356661105,1742927441185,-500.0,0.00012073,2]
[356661107,1742927441194,-562.22,0.00012073,2]
[356661109,1742927441204,-3117.52,0.00012073,2]
[356661111,1742927441213,-4437.25,0.00012073,2]
[356661113,1742927441222,-500.0,0.00012073,2]
[356661115,1742927441231,-500.0,0.00012073,2]
[356661117,1742927441240,-864.21,0.00012073,2]
[356661119,1742927441249,-77810.17,0.00012073,2]
[356661121,1742927441259,-2552.37,0.00012073,2]
[356661123,1742927441271,-1172.4,0.00012073,2]
[356661125,1742927441281,-500.0,0.00012073,2]
[356661127,1742927441290,-249.80265728,0.00012073,2]
[356661129,1742927441300,-1058.68,0.00012073,2]
[356661131,1742927441310,-500.0,0.00012073,2]
[356661133,1742927441320,-1216.82,0.00012073,2]
[356661135,1742927441329,-500.0,0.00012073,2]
[356661137,1742927441340,-500.0,0.00012073,2]
[356661139,1742927441350,-500.0,0.00012073,2]
[356661141,1742927441359,-1323.17,0.00012073,2]
[356661143,1742927441368,-490.69,0.00012073,2]
[356661145,1742927441378,-460.90800143,0.00012073,2]
[356661148,1742927441399,-39.09199857,0.00012073,2]
[356661150,1742927441409,-897.89229397,0.00012073,2]
[356661152,1742927441420,-600.65770603,0.00012073,2]
[356661154,1742927441430,-3399.34229397,0.00012073,2]
[356661250,1742927446912,-1383.54627258,0.00012073,2]
[356661251,1742927446925,-27.16143345,0.00012073,2]
[356661252,1742927446935,-638.1385665,0.00012073,2]
[356661255,1742927678930,258031.58193648,0.00011972,2]
[356661256,1742927690958,3000.0,0.00011971,2]
[356661257,1742927709860,500.0,0.0001197,2]
[356661258,1742927819669,45206.65806206,0.00011972,2]
[356661259,1742927952735,172.863905,0.00010959,2]
[356661260,1742927959288,1118.9269382,0.0001114,2]
[356661271,1742928631838,-300.0,0.00012067,2]
[356661272,1742928631847,-567.10384656,0.00012067,2]
[356661273,1742928631856,-334.27252871,0.00012068,2]
[356661274,1742928631866,-500.0,0.00012068,2]
[356661275,1742928631875,-500.0,0.00012068,2]
[356661276,1742928631884,-500.0,0.00012068,2]
[356661277,1742928631893,-500.0,0.00012068,2]
[356661278,1742928631902,-500.0,0.00012068,2]
[356661279,1742928631913,-500.0,0.00012068,2]
[356661280,1742928631923,-610.3,0.00012068,2]
[356661281,1742928631932,-500.0,0.00012068,2]
[356661282,1742928631941,-857.63,0.00012068,2]
[356661283,1742928631950,-2533.45,0.00012068,2]
[356661284,1742928631960,-3375.25,0.00012068,2]
[356661285,1742928631969,-500.0,0.00012068,2]
[356661286,1742928631978,-500.0,0.00012068,2]
[356661287,1742928631987,-938.09,0.00012068,2]
[356661288,1742928631997,-500.0,0.00012068,2]
[356661289,1742928632006,-500.0,0.00012068,2]
[356661290,1742928632016,-500.0,0.00012068,2]
[356661291,1742928632025,-1122.77,0.00012068,2]
[356661292,1742928632034,-272.54857112,0.00012068,2]
[356661293,1742928632043,-500.0,0.00012068,2]
[356661294,1742928632053,-500.0,0.00012068,2]
[356661295,1742928632062,-500.0,0.00012068,2]
[356661296,1742928632071,-500.0,0.00012068,2]
[356661297,1742928632080,-500.0,0.00012068,2]
[356661298,1742928632090,-500.0,0.00012068,2]
[356661299,1742928632099,-852.38,0.00012068,2]
[356661300,1742928632108,-766.17,0.00012068,2]
[356661301,1742928632117,-500.0,0.00012068,2]